[Event "*** Titled Tuesday 3|2 Blitz"]
[Site "Chess.com"]
[Date "2017.05.02"]
[Round "10"]
[White "jcibarra"]
[Black "biostatistician"]
[Result "1/2-1/2"]
[WhiteElo "2639"]
[BlackElo "2436"]
[TimeControl "180+2"]
[EndTime "15:27:44 PDT"]
[Termination "Game drawn - insufficient material"]

1. e4 {[%clk 0:03:02]} 1... e6 {[%clk 0:03:00.6]} 2. d4 {[%clk 0:02:58.6]} 2...
d5 {[%clk 0:03:02.5]} 3. Bd3 {[%clk 0:02:59.5]} 3... dxe4 {[%clk 0:03:02.9]} 4.
Bxe4 {[%clk 0:03:01.4]} 4... Nf6 {[%clk 0:03:04.4]} 5. Bf3 {[%clk 0:03:03.1]}
5... Nbd7 {[%clk 0:03:04.8]} 6. Ne2 {[%clk 0:03:03.8]} 6... e5 {[%clk
0:03:05.5]} 7. O-O {[%clk 0:03:04]} 7... Bd6 {[%clk 0:03:05.5]} 8. Ng3 {[%clk
0:03:03]} 8... O-O {[%clk 0:03:06]} 9. Nf5 {[%clk 0:03:04.2]} 9... Nb6 {[%clk
0:02:59.6]} 10. Nxd6 {[%clk 0:03:02.9]} 10... cxd6 {[%clk 0:03:01.5]} 11. Nc3
{[%clk 0:02:55]} 11... Re8 {[%clk 0:02:59.5]} 12. Re1 {[%clk 0:02:51.1]} 12...
Bf5 {[%clk 0:02:57.2]} 13. Bxb7 {[%clk 0:02:46.4]} 13... Rb8 {[%clk 0:02:58]}
14. Bc6 {[%clk 0:02:46.8]} 14... Rf8 {[%clk 0:02:54.1]} 15. Bg5 {[%clk
0:02:43.8]} 15... h6 {[%clk 0:02:53.8]} 16. dxe5 {[%clk 0:02:22.9]} 16... hxg5
{[%clk 0:02:29]} 17. exf6 {[%clk 0:02:24]} 17... Qxf6 {[%clk 0:02:30.9]} 18. Bd5
{[%clk 0:02:25.6]} 18... Rfe8 {[%clk 0:02:15.2]} 19. Bb3 {[%clk 0:02:23.5]}
19... Re5 {[%clk 0:02:02.6]} 20. Qd2 {[%clk 0:02:08.5]} 20... Rbe8 {[%clk
0:02:02]} 21. Rxe5 {[%clk 0:02:05.3]} 21... Qxe5 {[%clk 0:02:02.9]} 22. Rd1
{[%clk 0:02:02.8]} 22... Nd7 {[%clk 0:01:51.7]} 23. h3 {[%clk 0:01:59.5]} 23...
g4 {[%clk 0:01:49.4]} 24. Qxd6 {[%clk 0:01:41.3]} 24... gxh3 {[%clk 0:01:45]}
25. Qxe5 {[%clk 0:01:41.1]} 25... Nxe5 {[%clk 0:01:45.5]} 26. f3 {[%clk
0:01:28.1]} 26... g5 {[%clk 0:01:19.3]} 27. Nd5 {[%clk 0:01:28.2]} 27... Kg7
{[%clk 0:01:19]} 28. Kf2 {[%clk 0:01:16.5]} 28... hxg2 {[%clk 0:01:17.9]} 29.
Kxg2 {[%clk 0:01:10.5]} 29... g4 {[%clk 0:01:16.8]} 30. fxg4 {[%clk 0:00:58.5]}
30... Nxg4 {[%clk 0:01:18.7]} 31. Kg3 {[%clk 0:00:55.9]} 31... Re2 {[%clk
0:01:06.6]} 32. Rd4 {[%clk 0:00:43.5]} 32... Ne5 {[%clk 0:00:52.4]} 33. Nf4
{[%clk 0:00:26]} 33... Re3+ {[%clk 0:00:48.4]} 34. Kf2 {[%clk 0:00:25]} 34...
Ng4+ {[%clk 0:00:47.6]} 35. Kf1 {[%clk 0:00:21.3]} 35... Be4 {[%clk 0:00:44.8]}
36. Ne2 {[%clk 0:00:10.9]} 36... f5 {[%clk 0:00:44]} 37. Bd5 {[%clk 0:00:06.9]}
37... Nh2+ {[%clk 0:00:35.1]} 38. Kf2 {[%clk 0:00:07.2]} 38... Ng4+ {[%clk
0:00:35.6]} 39. Kf1 {[%clk 0:00:08.4]} 39... Nh2+ {[%clk 0:00:35.9]} 40. Kf2
{[%clk 0:00:08.4]} 40... Rf3+ {[%clk 0:00:35.5]} 41. Ke1 {[%clk 0:00:10.3]}
41... Rf1+ {[%clk 0:00:35.6]} 42. Kd2 {[%clk 0:00:11.2]} 42... Nf3+ {[%clk
0:00:37.5]} 43. Ke3 {[%clk 0:00:07.9]} 43... Nxd4 {[%clk 0:00:38.3]} 44. Bxe4
{[%clk 0:00:09.4]} 44... Nxe2 {[%clk 0:00:37.4]} 45. Kxe2 {[%clk 0:00:10.1]}
45... Rb1 {[%clk 0:00:35.9]} 46. Bxf5 {[%clk 0:00:10.4]} 46... Rxb2 {[%clk
0:00:37.1]} 47. a4 {[%clk 0:00:04.7]} 47... Ra2 {[%clk 0:00:37.7]} 48. Kd3
{[%clk 0:00:04.3]} 48... Rxa4 {[%clk 0:00:38.2]} 49. Be6 {[%clk 0:00:05.3]}
49... Kf6 {[%clk 0:00:39.1]} 50. Bb3 {[%clk 0:00:06.3]} 50... Rh4 {[%clk
0:00:39.6]} 51. Kc3 {[%clk 0:00:07.6]} 51... Ke5 {[%clk 0:00:41]} 52. Kb2 {[%clk
0:00:08.9]} 52... Kd4 {[%clk 0:00:42.1]} 53. c3+ {[%clk 0:00:10.1]} 53... Kd3
{[%clk 0:00:42.5]} 54. Bc2+ {[%clk 0:00:11.4]} 54... Kc4 {[%clk 0:00:43.8]} 55.
Bb3+ {[%clk 0:00:12.7]} 55... Kd3 {[%clk 0:00:44.3]} 56. Bc2+ {[%clk 0:00:13.8]}
56... Kd2 {[%clk 0:00:45.5]} 57. Bb3 {[%clk 0:00:12.5]} 57... Rh2 {[%clk
0:00:39.5]} 58. Bc4 {[%clk 0:00:11.8]} 58... Rh7 {[%clk 0:00:35.6]} 59. Kb3
{[%clk 0:00:08.6]} 59... Rb7+ {[%clk 0:00:36]} 60. Ka4 {[%clk 0:00:09.5]} 60...
Kxc3 {[%clk 0:00:36.9]} 61. Bd5 {[%clk 0:00:10.1]} 61... Rb6 {[%clk 0:00:37.9]}
62. Ka5 {[%clk 0:00:11.2]} 62... Kd4 {[%clk 0:00:38.9]} 63. Bg2 {[%clk
0:00:11.7]} 63... Kc5 {[%clk 0:00:40]} 64. Ba8 {[%clk 0:00:10.6]} 64... Rh6
{[%clk 0:00:36.5]} 65. Be4 {[%clk 0:00:11.1]} 65... Re6 {[%clk 0:00:35.7]} 66.
Ba8 {[%clk 0:00:12.2]} 66... Rb6 {[%clk 0:00:35.6]} 67. Be4 {[%clk 0:00:13.1]}
67... Kd6 {[%clk 0:00:37]} 68. Ba8 {[%clk 0:00:13.2]} 68... Kc7 {[%clk
0:00:38.9]} 69. Be4 {[%clk 0:00:12.1]} 69... Re6 {[%clk 0:00:39.5]} 70. Bf3
{[%clk 0:00:12]} 70... Kb8 {[%clk 0:00:38.5]} 71. Kb5 {[%clk 0:00:12.3]} 71...
Rb6+ {[%clk 0:00:37.5]} 72. Ka5 {[%clk 0:00:13]} 72... Rf6 {[%clk 0:00:37.6]}
73. Be4 {[%clk 0:00:12.9]} 73... a6 {[%clk 0:00:37.5]} 74. Bg2 {[%clk
0:00:13.5]} 74... Ka7 {[%clk 0:00:39.4]} 75. Kb4 {[%clk 0:00:14.4]} 75... Kb6
{[%clk 0:00:40]} 76. Bd5 {[%clk 0:00:15.3]} 76... a5+ {[%clk 0:00:41.9]} 77. Ka3
{[%clk 0:00:16.1]} 77... Rf4 {[%clk 0:00:41.6]} 78. Be6 {[%clk 0:00:16.3]} 78...
Re4 {[%clk 0:00:41.6]} 79. Bg8 {[%clk 0:00:16.9]} 79... Kb5 {[%clk 0:00:41.7]}
80. Bf7 {[%clk 0:00:17.4]} 80... Re3+ {[%clk 0:00:42.3]} 81. Kb2 {[%clk
0:00:18.2]} 81... Kb4 {[%clk 0:00:44.2]} 82. Bg8 {[%clk 0:00:17.1]} 82... Re2+
{[%clk 0:00:44.8]} 83. Kb1 {[%clk 0:00:18.5]} 83... Ka3 {[%clk 0:00:41.8]} 84.
Bf7 {[%clk 0:00:19.4]} 84... Rb2+ {[%clk 0:00:39.4]} 85. Kc1 {[%clk 0:00:20.8]}
85... Rb7 {[%clk 0:00:38.4]} 86. Be6 {[%clk 0:00:18.2]} 86... Rb6 {[%clk
0:00:38.3]} 87. Bf7 {[%clk 0:00:18.8]} 87... Rb2 {[%clk 0:00:35.6]} 88. Be6
{[%clk 0:00:19.1]} 88... Re2 {[%clk 0:00:35.8]} 89. Bf7 {[%clk 0:00:19.5]} 89...
Re1+ {[%clk 0:00:33]} 90. Kc2 {[%clk 0:00:20.2]} 90... Rf1 {[%clk 0:00:33.4]}
91. Be6 {[%clk 0:00:20.5]} 91... a4 {[%clk 0:00:33.4]} 92. Bd5 {[%clk
0:00:19.1]} 92... Rf2+ {[%clk 0:00:30.9]} 93. Kb1 {[%clk 0:00:19.9]} 93... Kb4
{[%clk 0:00:29.6]} 94. Be6 {[%clk 0:00:20.2]} 94... Kc3 {[%clk 0:00:21.8]} 95.
Bd5 {[%clk 0:00:20.8]} 95... Rb2+ {[%clk 0:00:20.9]} 96. Ka1 {[%clk 0:00:22.1]}
96... Rb5 {[%clk 0:00:21.4]} 97. Bf7 {[%clk 0:00:17.1]} 97... Rb7 {[%clk
0:00:22]} 98. Be6 {[%clk 0:00:17.9]} 98... Re7 {[%clk 0:00:22.2]} 99. Bd5 {[%clk
0:00:17.4]} 99... Kb4 {[%clk 0:00:23.1]} 100. Kb2 {[%clk 0:00:17.2]} 100... Re2+
{[%clk 0:00:22.8]} 101. Kb1 {[%clk 0:00:18]} 101... Ka3 {[%clk 0:00:22.8]} 102.
Bf7 {[%clk 0:00:18.7]} 102... Rf2 {[%clk 0:00:22.1]} 103. Be6 {[%clk 0:00:19]}
103... Rb2+ {[%clk 0:00:22]} 104. Kc1 {[%clk 0:00:20.1]} 104... Rb6 {[%clk
0:00:23.9]} 105. Bf7 {[%clk 0:00:21.1]} 105... Rf6 {[%clk 0:00:24.4]} 106. Bg8
{[%clk 0:00:21.9]} 106... Rc6+ {[%clk 0:00:24.3]} 107. Kb1 {[%clk 0:00:22.7]}
107... Rg6 {[%clk 0:00:23.8]} 108. Bf7 {[%clk 0:00:23.3]} 108... Rg7 {[%clk
0:00:24.6]} 109. Be6 {[%clk 0:00:24.3]} 109... Rg1+ {[%clk 0:00:24.9]} 110. Kc2
{[%clk 0:00:25]} 110... Kb4 {[%clk 0:00:21.6]} 111. Kb2 {[%clk 0:00:24.7]}
111... Rg2+ {[%clk 0:00:20.8]} 112. Kb1 {[%clk 0:00:25.7]} 112... Kc3 {[%clk
0:00:18.1]} 113. Bf7 {[%clk 0:00:25.4]} 113... Rf2 {[%clk 0:00:17.5]} 114. Be6
{[%clk 0:00:26.1]} 114... Kb4 {[%clk 0:00:15.2]} 115. Bg8 {[%clk 0:00:24.8]}
115... Rg2 {[%clk 0:00:14]} 116. Bf7 {[%clk 0:00:25.4]} 116... Rf2 {[%clk
0:00:14.7]} 117. Be6 {[%clk 0:00:25.1]} 117... a3 {[%clk 0:00:16.1]} 118. Bg8
{[%clk 0:00:23.8]} 118... Kc3 {[%clk 0:00:11.5]} 119. Bd5 {[%clk 0:00:21.8]}
119... Rd2 {[%clk 0:00:11.1]} 120. Bf7 {[%clk 0:00:22.7]} 120... a2+ {[%clk
0:00:08.9]} 121. Ka1 {[%clk 0:00:21.7]} 121... Rf2 {[%clk 0:00:05.6]} 122. Bxa2
{[%clk 0:00:21.7]} 122... Kc2 {[%clk 0:00:06.7]} 123. Bb1+ {[%clk 0:00:22.4]}
123... Kb3 {[%clk 0:00:07.6]} 124. Bh7 {[%clk 0:00:22.4]} 124... Ra2+ {[%clk
0:00:07.9]} 125. Kb1 {[%clk 0:00:23.6]} 125... Rh2 {[%clk 0:00:09.8]} 126. Bg8+
{[%clk 0:00:24.9]} 126... Kc3 {[%clk 0:00:10.1]} 127. Ka1 {[%clk 0:00:25]}
127... Rh1+ {[%clk 0:00:09.7]} 128. Ka2 {[%clk 0:00:25.2]} 128... Rh8 {[%clk
0:00:11.6]} 129. Bf7 {[%clk 0:00:25.7]} 129... Ra8+ {[%clk 0:00:10.2]} 130. Kb1
{[%clk 0:00:26.4]} 130... Rb8+ {[%clk 0:00:11.7]} 131. Ka2 {[%clk 0:00:27.1]}
131... Rb6 {[%clk 0:00:12.7]} 132. Bg8 {[%clk 0:00:24.2]} 132... Rb7 {[%clk
0:00:12.9]} 133. Be6 {[%clk 0:00:23.2]} 133... Re7 {[%clk 0:00:12.9]} 134. Bd5
{[%clk 0:00:20.8]} 134... Kc2 {[%clk 0:00:11.5]} 135. Bb3+ {[%clk 0:00:20.2]}
135... Kc3 {[%clk 0:00:11.5]} 136. Bg8 {[%clk 0:00:19.1]} 136... Ra7+ {[%clk
0:00:09]} 137. Kb1 {[%clk 0:00:19]} 137... Rb7+ {[%clk 0:00:10.2]} 138. Ka1
{[%clk 0:00:19.1]} 138... Kc2 {[%clk 0:00:10.4]} 139. Ba2 {[%clk 0:00:19.6]}
139... Rb6 {[%clk 0:00:10.5]} 140. Bg8 {[%clk 0:00:19.4]} 140... Rb1+ {[%clk
0:00:11]} 141. Ka2 {[%clk 0:00:20.4]} 141... Rb7 {[%clk 0:00:12.9]} 142. Ka1
{[%clk 0:00:21]} 142... Rb1+ {[%clk 0:00:12.5]} 143. Ka2 {[%clk 0:00:21.9]}
143... Rb8 {[%clk 0:00:14.4]} 144. Bh7+ {[%clk 0:00:23.2]} 144... Kc3 {[%clk
0:00:15.2]} 145. Ka1 {[%clk 0:00:24.2]} 145... Rh8 {[%clk 0:00:11.6]} 146. Bb1
{[%clk 0:00:24.7]} 146... Rh2 {[%clk 0:00:10.9]} 147. Bg6 {[%clk 0:00:23.2]}
147... Kb3 {[%clk 0:00:11.9]} 148. Bf7+ {[%clk 0:00:23.7]} 148... Ka3 {[%clk
0:00:13]} 149. Kb1 {[%clk 0:00:24.1]} 149... Rf2 {[%clk 0:00:12.7]} 150. Be6
{[%clk 0:00:24.7]} 150... Kb4 {[%clk 0:00:13.1]} 151. Bg8 {[%clk 0:00:24]}
151... Kc3 {[%clk 0:00:15]} 152. Ka1 {[%clk 0:00:24.9]} 152... Rf1+ {[%clk
0:00:13.8]} 153. Ka2 {[%clk 0:00:25.9]} 153... Rg1 {[%clk 0:00:14.9]} 154. Bf7
{[%clk 0:00:26.5]} 154... Kc2 {[%clk 0:00:14.1]} 155. Bb3+ {[%clk 0:00:26.5]}
155... Kd3 {[%clk 0:00:13.9]} 156. Bf7 {[%clk 0:00:26.8]} 156... Kc3 {[%clk
0:00:15.8]} 157. Be6 {[%clk 0:00:27.3]} 157... Rg6 {[%clk 0:00:10.1]} 158. Bf7
{[%clk 0:00:28]} 158... Rf6 {[%clk 0:00:10]} 159. Bg8 {[%clk 0:00:28.6]} 159...
Rf8 {[%clk 0:00:09.8]} 160. Be6 {[%clk 0:00:28.5]} 160... Ra8+ {[%clk
0:00:10.3]} 161. Kb1 {[%clk 0:00:29.4]} 161... Re8 {[%clk 0:00:10.9]} 162. Bf7
{[%clk 0:00:29.2]} 162... Re5 {[%clk 0:00:11.6]} 163. Ka1 {[%clk 0:00:25.8]}
163... Ra5+ {[%clk 0:00:08.9]} 164. Kb1 {[%clk 0:00:26.6]} 164... Rf5 {[%clk
0:00:09.7]} 165. Be6 {[%clk 0:00:27.1]} 165... Rf6 {[%clk 0:00:10.4]} 166. Bg8
{[%clk 0:00:26.4]} 166... Rf2 {[%clk 0:00:08.8]} 167. Ka1 {[%clk 0:00:21.6]}
167... Kc2 {[%clk 0:00:07.6]} 168. Bh7+ {[%clk 0:00:22.4]} 168... Kb3 {[%clk
0:00:08.1]} 169. Bg8+ {[%clk 0:00:23.3]} 169... Ka3 {[%clk 0:00:09.1]} 170. Kb1
{[%clk 0:00:22.1]} 170... Rg2 {[%clk 0:00:06.9]} 171. Bf7 {[%clk 0:00:22.5]}
171... Rg7 {[%clk 0:00:06.4]} 172. Be6 {[%clk 0:00:23.4]} 172... Kb4 {[%clk
0:00:07.2]} 173. Kb2 {[%clk 0:00:20.3]} 173... Rg2+ {[%clk 0:00:06.9]} 174. Kb1
{[%clk 0:00:20.4]} 174... Kc3 {[%clk 0:00:07.8]} 175. Bf5 {[%clk 0:00:20.6]}
175... Rb2+ {[%clk 0:00:07.5]} 176. Ka1 {[%clk 0:00:21.4]} 176... Kb3 {[%clk
0:00:08.6]} 177. Be6+ {[%clk 0:00:22.1]} 177... Ka3 {[%clk 0:00:09.5]} 178. Bf5
{[%clk 0:00:23.1]} 178... Rf2 {[%clk 0:00:10]} 179. Bb1 {[%clk 0:00:22.5]}
179... Rg2 {[%clk 0:00:08.1]} 180. Be4 {[%clk 0:00:22.8]} 180... Re2 {[%clk
0:00:07.6]} 181. Bh7 {[%clk 0:00:21.7]} 181... Rf2 {[%clk 0:00:07]} 182. Kb1
{[%clk 0:00:20.8]} 182... Kb3 {[%clk 0:00:07.1]} 183. Bg8+ {[%clk 0:00:21.6]}
183... Kc3 {[%clk 0:00:08.2]} 184. Bh7 {[%clk 0:00:22.5]} 184... Rf7 {[%clk
0:00:07.5]} 185. Bg6 {[%clk 0:00:22.8]} 185... Rg7 {[%clk 0:00:08]} 186. Bf5
{[%clk 0:00:23.6]} 186... Rg2 {[%clk 0:00:07.1]} 187. Ka1 {[%clk 0:00:23.8]}
187... Kb3 {[%clk 0:00:07.5]} 188. Be6+ {[%clk 0:00:24.8]} 188... Ka3 {[%clk
0:00:08.3]} 189. Bf5 {[%clk 0:00:24.9]} 189... Rf2 {[%clk 0:00:05.8]} 190. Bb1
{[%clk 0:00:24.4]} 190... Kb3 {[%clk 0:00:06.7]} 191. Bh7 {[%clk 0:00:23.5]}
191... Rf1+ {[%clk 0:00:07.1]} 192. Bb1 {[%clk 0:00:23.6]} 192... Rf7 {[%clk
0:00:09]} 193. Ba2+ {[%clk 0:00:24]} 193... Kc3 {[%clk 0:00:08.8]} 194. Bxf7
{[%clk 0:00:25.9]} 1/2-1/2